[Event "Titled Tuesday Blitz November 01 Late 2022"]
[White "Araujo Sanchez, Josue"]
[Black "Roque Sola, Jose Luis"]
[WhiteFideId "6416896"]
[BlackFideId "5120390"]
[WhiteElo "2370"]
[BlackElo "2117"]
[Result "1-0"]
[Round "01"]
[TimeControl "180+1"]
[Date "2022.11.02"]
[WhiteClock "0:00:19"]
[BlackClock "0:00:09"]

1. Nf3 {[%clk 0:02:53]}  Nf6 {[%clk 0:02:59]} 2. g3 {[%clk 0:02:53]}  g6 {[%clk 0:02:59]} 3. Bg2 {[%clk 0:02:54]}  Bg7 {[%clk 0:03:00]} 4. O-O {[%clk 0:02:55]}  O-O {[%clk 0:03:00]} 5. d4 {[%clk 0:02:56]}  d5 {[%clk 0:02:56]} 6. c4 {[%clk 0:02:55]}  c6 {[%clk 0:02:49]} 7. Nc3 {[%clk 0:02:53]}  Na6 {[%clk 0:02:33]} 8. b3 {[%clk 0:02:47]}  Bd7 {[%clk 0:02:30]} 9. Bb2 {[%clk 0:02:43]}  Qc8 {[%clk 0:02:24]} 10. Re1 {[%clk 0:02:42]}  Bh3 {[%clk 0:02:23]} 11. Bh1 {[%clk 0:02:41]}  h6 {[%clk 0:02:24]} 12. Rc1 {[%clk 0:02:38]}  Qd8 {[%clk 0:02:17]} 13. Ne5 {[%clk 0:02:33]}  Ng4 {[%clk 0:02:01]} 14. Nxg4 {[%clk 0:02:27]}  Bxg4 {[%clk 0:02:02]} 15. cxd5 {[%clk 0:02:27]}  cxd5 {[%clk 0:01:58]} 16. Nxd5 {[%clk 0:02:24]}  e6 {[%clk 0:01:49]} 17. Ne3 {[%clk 0:01:40]}  Bh3 {[%clk 0:01:48]} 18. Bxb7 {[%clk 0:01:38]}  Nb4 {[%clk 0:01:48]} 19. Rc4 {[%clk 0:01:27]}  Nxa2 {[%clk 0:01:08]} 20. Bxa8 {[%clk 0:01:09]}  Qxa8 {[%clk 0:01:07]} 21. Qa1 {[%clk 0:01:09]}  f5 {[%clk 0:00:47]} 22. d5 {[%clk 0:00:37]}  Bxb2 {[%clk 0:00:43]} 23. Qxb2 {[%clk 0:00:35]}  f4 {[%clk 0:00:12]} 24. gxf4 {[%clk 0:00:20]}  exd5 {[%clk 0:00:10]} 25. Rc7 {[%clk 0:00:19]}  Rf7 {[%clk 0:00:11]} 26. Rxf7 {[%clk 0:00:19]}  Kxf7 {[%clk 0:00:12]} 27. Qxa2 {[%clk 0:00:19]}  d4 {[%clk 0:00:10]} 28. Ra1 {[%clk 0:00:19]}  dxe3 {[%clk 0:00:09]} 29. Qxa7+ {[%clk 0:00:18]}  Qxa7 {[%clk 0:00:09]} 30. Rxa7+ {[%clk 0:00:18]}  Kf6 {[%clk 0:00:09]} 31. fxe3 {[%clk 0:00:19]} 1-0


[Site "https://www.chess.com"]

[Event "Titled Tuesday Blitz November 01 Late 2022"]
[White "Aydin, Gulenay"]
[Black "Zierk, Steven"]
[WhiteFideId "34557431"]
[BlackFideId "2034255"]
[WhiteElo "2009"]
[BlackElo "2494"]
[Result "0-1"]
[Round "01"]
[TimeControl "180+1"]
[Date "2022.11.01"]
[WhiteClock "0:00:20"]
[BlackClock "0:00:47"]

1. e4 {[%clk 0:03:00]}  e6 {[%clk 0:02:58]} 2. d4 {[%clk 0:03:00]}  d5 {[%clk 0:02:58]} 3. Nd2 {[%clk 0:03:01]}  c5 {[%clk 0:02:58]} 4. Ngf3 {[%clk 0:02:59]}  cxd4 {[%clk 0:02:58]} 5. Nxd4 {[%clk 0:03:00]}  Nc6 {[%clk 0:02:59]} 6. Bb5 {[%clk 0:02:57]}  Bd7 {[%clk 0:02:59]} 7. Nxc6 {[%clk 0:02:58]}  bxc6 {[%clk 0:02:59]} 8. Bd3 {[%clk 0:02:59]}  Qc7 {[%clk 0:02:59]} 9. Qe2 {[%clk 0:02:46]}  Ne7 {[%clk 0:02:55]} 10. O-O {[%clk 0:02:44]}  Ng6 {[%clk 0:02:54]} 11. Nf3 {[%clk 0:02:43]}  Be7 {[%clk 0:02:43]} 12. c4 {[%clk 0:02:26]}  dxe4 {[%clk 0:02:39]} 13. Qxe4 {[%clk 0:02:20]}  f5 {[%clk 0:02:35]} 14. Qe2 {[%clk 0:02:14]}  e5 {[%clk 0:02:32]} 15. Bc2 {[%clk 0:01:31]}  e4 {[%clk 0:02:23]} 16. Nd4 {[%clk 0:01:28]}  O-O {[%clk 0:02:21]} 17. c5 {[%clk 0:01:18]}  Kh8 {[%clk 0:02:16]} 18. b4 {[%clk 0:00:59]}  a5 {[%clk 0:02:14]} 19. bxa5 {[%clk 0:00:55]}  Bxc5 {[%clk 0:02:12]} 20. Nb3 {[%clk 0:00:55]}  Bd6 {[%clk 0:02:11]} 21. h3 {[%clk 0:00:53]}  Rae8 {[%clk 0:02:03]} 22. Re1 {[%clk 0:00:46]}  f4 {[%clk 0:01:47]} 23. Qh5 {[%clk 0:00:45]}  Rf5 {[%clk 0:01:37]} 24. Qd1 {[%clk 0:00:37]}  Rd5 {[%clk 0:01:35]} 25. Qe2 {[%clk 0:00:32]}  f3 {[%clk 0:01:06]} 26. Qc4 {[%clk 0:00:19]}  Bh2+ {[%clk 0:00:56]} 27. Kh1 {[%clk 0:00:19]}  fxg2+ {[%clk 0:00:55]} 28. Kxg2 {[%clk 0:00:19]}  Nh4+ {[%clk 0:00:54]} 29. Kf1 {[%clk 0:00:19]}  Bxh3+ {[%clk 0:00:53]} 30. Ke2 {[%clk 0:00:20]}  Qf7 {[%clk 0:00:47]} 0-1


[Site "https://www.chess.com"]

[Event "Titled Tuesday Blitz November 01 Late 2022"]
[White "Barash, Anton"]
[Black "Pinheiro, Iung Alicio de O."]
[WhiteFideId "30935229"]
[BlackFideId "2104350"]
[WhiteElo "2247"]
[BlackElo "2283"]
[Result "0-1"]
[Round "01"]
[TimeControl "180+1"]
[Date "2022.11.02"]
[WhiteClock "0:00:03"]
[BlackClock "0:00:11"]

1. e4 {[%clk 0:02:56]}  c5 {[%clk 0:02:55]} 2. Nf3 {[%clk 0:02:56]}  Nc6 {[%clk 0:02:55]} 3. d4 {[%clk 0:02:57]}  cxd4 {[%clk 0:02:55]} 4. Nxd4 {[%clk 0:02:58]}  e5 {[%clk 0:02:55]} 5. Nb5 {[%clk 0:02:58]}  d6 {[%clk 0:02:55]} 6. N1c3 {[%clk 0:02:58]}  a6 {[%clk 0:02:54]} 7. Na3 {[%clk 0:02:59]}  b5 {[%clk 0:02:55]} 8. Nd5 {[%clk 0:02:59]}  Nge7 {[%clk 0:02:56]} 9. c4 {[%clk 0:02:58]}  Nxd5 {[%clk 0:02:55]} 10. exd5 {[%clk 0:02:47]}  Nd4 {[%clk 0:02:51]} 11. Be3 {[%clk 0:02:40]}  Nf5 {[%clk 0:02:49]} 12. cxb5 {[%clk 0:02:31]}  Nxe3 {[%clk 0:02:47]} 13. fxe3 {[%clk 0:02:30]}  Qh4+ {[%clk 0:02:48]} 14. Kd2 {[%clk 0:02:19]}  Qb4+ {[%clk 0:02:26]} 15. Kc1 {[%clk 0:02:18]}  Bf5 {[%clk 0:02:15]} 16. Qd2 {[%clk 0:02:16]}  Rc8+ {[%clk 0:02:08]} 17. Kd1 {[%clk 0:02:16]}  Qa4+ {[%clk 0:01:59]} 18. Ke1 {[%clk 0:02:00]}  Be7 {[%clk 0:01:52]} 19. bxa6 {[%clk 0:01:56]}  O-O {[%clk 0:01:38]} 20. Be2 {[%clk 0:01:46]}  Bh4+ {[%clk 0:01:04]} 21. g3 {[%clk 0:01:34]}  Qe4 {[%clk 0:00:56]} 22. Rf1 {[%clk 0:01:27]}  Bg5 {[%clk 0:00:56]} 23. Bf3 {[%clk 0:00:58]}  Qa4 {[%clk 0:00:45]} 24. h4 {[%clk 0:00:57]}  Bh6 {[%clk 0:00:43]} 25. Kf2 {[%clk 0:00:46]}  Bh3 {[%clk 0:00:22]} 26. Rfc1 {[%clk 0:00:43]}  Qxa6 {[%clk 0:00:20]} 27. g4 {[%clk 0:00:37]}  g6 {[%clk 0:00:17]} 28. Kg3 {[%clk 0:00:34]}  e4 {[%clk 0:00:16]} 29. Bxe4 {[%clk 0:00:28]}  Rce8 {[%clk 0:00:16]} 30. Rc4 {[%clk 0:00:16]}  f5 {[%clk 0:00:15]} 31. gxf5 {[%clk 0:00:15]}  Bxf5 {[%clk 0:00:14]} 32. Bxf5 {[%clk 0:00:15]}  Rxe3+ {[%clk 0:00:15]} 33. Kh2 {[%clk 0:00:05]}  Rh3+ {[%clk 0:00:10]} 34. Kxh3 {[%clk 0:00:06]}  Bxd2 {[%clk 0:00:11]} 35. Be6+ {[%clk 0:00:06]}  Kg7 {[%clk 0:00:11]} 36. Rc7+ {[%clk 0:00:05]}  Kh6 {[%clk 0:00:11]} 37. Nc4 {[%clk 0:00:03]}  Rf3+ {[%clk 0:00:09]} 38. Kg2 {[%clk 0:00:03]}  Rf4 {[%clk 0:00:09]} 39. Nxd2 {[%clk 0:00:02]}  Qe2+ {[%clk 0:00:10]} 40. Kg3 {[%clk 0:00:03]}  Qf2+ {[%clk 0:00:10]} 41. Kh3 {[%clk 0:00:03]}  Rxh4# {[%clk 0:00:11]} 0-1


[Site "https://www.chess.com"]

[Event "Titled Tuesday Blitz November 01 Late 2022"]
[White "Barria Zuniga, Daniel"]
[Black "Lazavik, Denis"]
[WhiteFideId "3400816"]
[BlackFideId "13515110"]
[WhiteElo "2414"]
[BlackElo "2437"]
[Result "0-1"]
[Round "01"]
[TimeControl "180+1"]
[Date "2022.11.01"]
[WhiteClock "0:00:14"]
[BlackClock "0:00:36"]

1. c4 {[%clk 0:02:54]}  e5 {[%clk 0:02:59]} 2. g3 {[%clk 0:02:52]}  f5 {[%clk 0:02:56]} 3. Bg2 {[%clk 0:02:51]}  Nf6 {[%clk 0:02:57]} 4. Nc3 {[%clk 0:02:47]}  d6 {[%clk 0:02:56]} 5. Nh3 {[%clk 0:02:41]}  Be7 {[%clk 0:02:54]} 6. O-O {[%clk 0:02:42]}  O-O {[%clk 0:02:54]} 7. d3 {[%clk 0:02:38]}  c6 {[%clk 0:02:52]} 8. b4 {[%clk 0:02:36]}  Qe8 {[%clk 0:02:50]} 9. b5 {[%clk 0:02:36]}  Kh8 {[%clk 0:02:48]} 10. bxc6 {[%clk 0:02:28]}  bxc6 {[%clk 0:02:48]} 11. Ba3 {[%clk 0:02:27]}  Be6 {[%clk 0:02:43]} 12. Rb1 {[%clk 0:02:21]}  d5 {[%clk 0:02:29]} 13. Bxe7 {[%clk 0:02:17]}  Qxe7 {[%clk 0:02:30]} 14. cxd5 {[%clk 0:02:17]}  cxd5 {[%clk 0:02:31]} 15. Qa4 {[%clk 0:02:17]}  Bg8 {[%clk 0:02:19]} 16. Rfc1 {[%clk 0:02:14]}  e4 {[%clk 0:02:14]} 17. Nb5 {[%clk 0:02:05]}  Nbd7 {[%clk 0:02:04]} 18. Nc7 {[%clk 0:02:01]}  Rac8 {[%clk 0:02:02]} 19. Qxa7 {[%clk 0:01:58]}  Qe5 {[%clk 0:01:50]} 20. a4 {[%clk 0:01:47]}  Rf7 {[%clk 0:01:22]} 21. a5 {[%clk 0:01:26]}  Nf8 {[%clk 0:01:19]} 22. Rb7 {[%clk 0:01:22]}  Ne6 {[%clk 0:01:09]} 23. d4 {[%clk 0:01:08]}  Qd6 {[%clk 0:01:09]} 24. Qb6 {[%clk 0:01:07]}  Qd8 {[%clk 0:00:50]} 25. Qxe6 {[%clk 0:00:56]}  Rfxc7 {[%clk 0:00:43]} 26. Rcxc7 {[%clk 0:00:17]}  Bxe6 {[%clk 0:00:43]} 27. Rxg7 {[%clk 0:00:15]}  Rc1+ {[%clk 0:00:42]} 28. Bf1 {[%clk 0:00:14]}  Qxa5 {[%clk 0:00:42]} 29. Ng5 {[%clk 0:00:14]}  Qe1 {[%clk 0:00:36]} 0-1


[Site "https://www.chess.com"]

[Event "Titled Tuesday Blitz November 01 Late 2022"]
[White "Bartel, Mateusz"]
[Black "Golubovskis, Maksims"]
[WhiteFideId "1112635"]
[BlackFideId "11608528"]
[WhiteElo "2530"]
[BlackElo "2191"]
[Result "1-0"]
[Round "01"]
[TimeControl "180+1"]
[Date "2022.11.02"]
[WhiteClock "0:01:08"]
[BlackClock "0:00:03"]

1. Nf3 {[%clk 0:02:59]}  Nf6 {[%clk 0:02:58]} 2. c4 {[%clk 0:02:58]}  c5 {[%clk 0:02:59]} 3. g3 {[%clk 0:02:54]}  g6 {[%clk 0:02:58]} 4. Bg2 {[%clk 0:02:53]}  Bg7 {[%clk 0:02:59]} 5. O-O {[%clk 0:02:54]}  O-O {[%clk 0:02:59]} 6. Nc3 {[%clk 0:02:50]}  Nc6 {[%clk 0:02:58]} 7. d4 {[%clk 0:02:50]}  cxd4 {[%clk 0:02:59]} 8. Nxd4 {[%clk 0:02:50]}  d6 {[%clk 0:02:53]} 9. Nc2 {[%clk 0:02:42]}  Be6 {[%clk 0:02:50]} 10. Ne3 {[%clk 0:02:42]}  Ng4 {[%clk 0:02:44]} 11. Nxg4 {[%clk 0:02:38]}  Bxg4 {[%clk 0:02:45]} 12. Qd2 {[%clk 0:02:38]}  Rc8 {[%clk 0:02:36]} 13. b3 {[%clk 0:02:34]}  b5 {[%clk 0:02:17]} 14. h3 {[%clk 0:02:09]}  b4 {[%clk 0:02:07]} 15. Nd5 {[%clk 0:01:57]}  Bxa1 {[%clk 0:02:02]} 16. hxg4 {[%clk 0:01:56]}  e6 {[%clk 0:01:56]} 17. Nxb4 {[%clk 0:01:55]}  Nxb4 {[%clk 0:01:47]} 18. Qxb4 {[%clk 0:01:56]}  Qb6 {[%clk 0:01:41]} 19. Qxb6 {[%clk 0:01:54]}  axb6 {[%clk 0:01:41]} 20. Be3 {[%clk 0:01:54]}  Be5 {[%clk 0:01:11]} 21. Bxb6 {[%clk 0:01:53]}  Rb8 {[%clk 0:01:08]} 22. Be3 {[%clk 0:01:46]}  Rfd8 {[%clk 0:01:08]} 23. Rd1 {[%clk 0:01:45]}  Kf8 {[%clk 0:01:01]} 24. Bf3 {[%clk 0:01:32]}  f5 {[%clk 0:00:51]} 25. Kg2 {[%clk 0:01:31]}  Kg7 {[%clk 0:00:45]} 26. g5 {[%clk 0:01:27]}  Rbc8 {[%clk 0:00:32]} 27. a4 {[%clk 0:01:23]}  d5 {[%clk 0:00:25]} 28. cxd5 {[%clk 0:01:23]}  Rc3 {[%clk 0:00:25]} 29. b4 {[%clk 0:01:18]}  Rc4 {[%clk 0:00:20]} 30. Bc5 {[%clk 0:01:16]}  exd5 {[%clk 0:00:11]} 31. Rxd5 {[%clk 0:01:15]}  Rxd5 {[%clk 0:00:10]} 32. Bxd5 {[%clk 0:01:16]}  Rc2 {[%clk 0:00:11]} 33. a5 {[%clk 0:01:12]}  Rxe2 {[%clk 0:00:07]} 34. a6 {[%clk 0:01:12]}  Bb8 {[%clk 0:00:03]} 35. a7 {[%clk 0:01:10]}  Bxa7 {[%clk 0:00:04]} 36. Bxa7 {[%clk 0:01:10]}  Re5 {[%clk 0:00:03]} 37. Bd4 {[%clk 0:01:08]} 1-0


[Site "https://www.chess.com"]

[Event "Titled Tuesday Blitz November 01 Late 2022"]
[White "Bayo Milagro, Alvaro"]
[Black "Ali Abdullahi, Farah"]
[WhiteFideId "22275240"]
[BlackFideId "16100212"]
[WhiteElo "2270"]
[BlackElo "2300"]
[Result "1-0"]
[Round "01"]
[TimeControl "180+1"]
[Date "2022.11.02"]
[WhiteClock "0:00:35"]
[BlackClock "0:00:33"]

1. e4 {[%clk 0:03:00]}  e6 {[%clk 0:02:58]} 2. d4 {[%clk 0:02:59]}  d5 {[%clk 0:02:46]} 3. Nd2 {[%clk 0:02:59]}  Nf6 {[%clk 0:02:45]} 4. e5 {[%clk 0:03:00]}  Nfd7 {[%clk 0:02:45]} 5. Bd3 {[%clk 0:03:00]}  c5 {[%clk 0:02:45]} 6. c3 {[%clk 0:03:00]}  Nc6 {[%clk 0:02:45]} 7. Ngf3 {[%clk 0:03:01]}  Be7 {[%clk 0:02:45]} 8. O-O {[%clk 0:02:59]}  g5 {[%clk 0:02:44]} 9. dxc5 {[%clk 0:02:56]}  Ncxe5 {[%clk 0:02:40]} 10. Nxe5 {[%clk 0:02:55]}  Nxe5 {[%clk 0:02:38]} 11. Bb5+ {[%clk 0:02:55]}  Bd7 {[%clk 0:02:38]} 12. Bxd7+ {[%clk 0:02:52]}  Qxd7 {[%clk 0:02:38]} 13. Nb3 {[%clk 0:02:50]}  h5 {[%clk 0:02:33]} 14. f4 {[%clk 0:02:47]}  gxf4 {[%clk 0:02:19]} 15. Bxf4 {[%clk 0:02:48]}  Ng6 {[%clk 0:02:19]} 16. Qd2 {[%clk 0:02:35]}  Rc8 {[%clk 0:02:09]} 17. Be3 {[%clk 0:02:19]}  Rg8 {[%clk 0:02:08]} 18. Qf2 {[%clk 0:01:54]}  Bh4 {[%clk 0:01:48]} 19. Qf3 {[%clk 0:01:52]}  Bd8 {[%clk 0:01:45]} 20. Qxh5 {[%clk 0:01:44]}  Bc7 {[%clk 0:01:44]} 21. g3 {[%clk 0:01:35]}  Rh8 {[%clk 0:01:30]} 22. Qf3 {[%clk 0:01:33]}  e5 {[%clk 0:01:28]} 23. Rae1 {[%clk 0:01:24]}  Rh7 {[%clk 0:01:23]} 24. Re2 {[%clk 0:01:15]}  e4 {[%clk 0:01:19]} 25. Qf5 {[%clk 0:01:08]}  Qxf5 {[%clk 0:01:11]} 26. Rxf5 {[%clk 0:01:09]}  Ne5 {[%clk 0:01:11]} 27. Nd4 {[%clk 0:01:03]}  Ng4 {[%clk 0:00:59]} 28. Rxd5 {[%clk 0:00:55]}  Ke7 {[%clk 0:00:50]} 29. Bg5+ {[%clk 0:00:52]}  f6 {[%clk 0:00:40]} 30. Rxe4+ {[%clk 0:00:49]}  Be5 {[%clk 0:00:40]} 31. Rxg4 {[%clk 0:00:39]}  Bxd4+ {[%clk 0:00:38]} 32. Rgxd4 {[%clk 0:00:39]}  fxg5 {[%clk 0:00:37]} 33. Rd7+ {[%clk 0:00:39]}  Ke6 {[%clk 0:00:37]} 34. Rxh7 {[%clk 0:00:40]}  Rxc5 {[%clk 0:00:37]} 35. Rxb7 {[%clk 0:00:39]}  a5 {[%clk 0:00:37]} 36. a4 {[%clk 0:00:38]}  Re5 {[%clk 0:00:34]} 37. Kf2 {[%clk 0:00:37]}  g4 {[%clk 0:00:33]} 38. Rb6+ {[%clk 0:00:36]}  Kf5 {[%clk 0:00:33]} 39. Rb5 {[%clk 0:00:35]} 1-0


[Site "https://www.chess.com"]

[Event "Titled Tuesday Blitz November 01 Late 2022"]
[White "Becerra, Juan David"]
[Black "Tang, Andrew"]
[WhiteFideId "4404998"]
[BlackFideId "2059630"]
[WhiteElo "2278"]
[BlackElo "2581"]
[Result "0-1"]
[Round "01"]
[TimeControl "180+1"]
[Date "2022.11.02"]
[WhiteClock "0:00:08"]
[BlackClock "0:00:33"]

1. e4 {[%clk 0:02:57]}  b5 {[%clk 0:02:59]} 2. Bxb5 {[%clk 0:02:56]}  f5 {[%clk 0:02:58]} 3. d3 {[%clk 0:02:46]}  c6 {[%clk 0:02:30]} 4. exf5 {[%clk 0:02:33]}  cxb5 {[%clk 0:02:13]} 5. Qh5+ {[%clk 0:02:32]}  g6 {[%clk 0:02:13]} 6. fxg6 {[%clk 0:02:32]}  Bg7 {[%clk 0:02:14]} 7. gxh7+ {[%clk 0:02:31]}  Kf8 {[%clk 0:02:15]} 8. hxg8=Q+ {[%clk 0:02:30]}  Kxg8 {[%clk 0:02:16]} 9. Qd5+ {[%clk 0:02:29]}  Kh7 {[%clk 0:02:14]} 10. Qxa8 {[%clk 0:02:29]}  Nc6 {[%clk 0:02:13]} 11. Nf3 {[%clk 0:02:26]}  Qc7 {[%clk 0:02:09]} 12. Nc3 {[%clk 0:02:15]}  Bb7 {[%clk 0:02:07]} 13. Ng5+ {[%clk 0:02:06]}  Kg6 {[%clk 0:02:06]} 14. Qxh8 {[%clk 0:02:01]}  Bxh8 {[%clk 0:02:07]} 15. O-O {[%clk 0:01:57]}  Nd4 {[%clk 0:02:03]} 16. Bd2 {[%clk 0:01:47]}  b4 {[%clk 0:01:55]} 17. Nce4 {[%clk 0:01:44]}  Qxc2 {[%clk 0:01:53]} 18. Be3 {[%clk 0:01:33]}  Ne2+ {[%clk 0:01:39]} 19. Kh1 {[%clk 0:01:32]}  d5 {[%clk 0:01:26]} 20. Nc5 {[%clk 0:01:22]}  Bc8 {[%clk 0:01:15]} 21. d4 {[%clk 0:01:13]}  e5 {[%clk 0:01:06]} 22. f4 {[%clk 0:01:00]}  exf4 {[%clk 0:01:01]} 23. Bxf4 {[%clk 0:00:37]}  Bxd4 {[%clk 0:00:53]} 24. Nb3 {[%clk 0:00:32]}  Bxb2 {[%clk 0:00:52]} 25. Rae1 {[%clk 0:00:25]}  Nxf4 {[%clk 0:00:50]} 26. Rxf4 {[%clk 0:00:25]}  Kxg5 {[%clk 0:00:50]} 27. Ref1 {[%clk 0:00:24]}  Be5 {[%clk 0:00:44]} 28. Rf8 {[%clk 0:00:22]}  Bh3 {[%clk 0:00:37]} 29. Rg8+ {[%clk 0:00:16]}  Kh6 {[%clk 0:00:37]} 30. Rc1 {[%clk 0:00:08]}  Qe2 {[%clk 0:00:33]} 0-1


[Site "https://www.chess.com"]

[Event "Titled Tuesday Blitz November 01 Late 2022"]
[White "Beerdsen, Thomas"]
[Black "Kanyamarala, Trisha"]
[WhiteFideId "1030108"]
[BlackFideId "45004722"]
[WhiteElo "2567"]
[BlackElo "2099"]
[Result "1-0"]
[Round "01"]
[TimeControl "180+1"]
[Date "2022.11.02"]
[WhiteClock "0:01:31"]
[BlackClock "0:00:07"]

1. g4 {[%clk 0:03:00]}  b6 {[%clk 0:02:51]} 2. Bg2 {[%clk 0:03:00]}  c6 {[%clk 0:02:51]} 3. h4 {[%clk 0:02:58]}  d5 {[%clk 0:02:51]} 4. g5 {[%clk 0:02:59]}  e5 {[%clk 0:02:49]} 5. d4 {[%clk 0:02:58]}  e4 {[%clk 0:02:48]} 6. c4 {[%clk 0:02:59]}  Ne7 {[%clk 0:02:39]} 7. Nc3 {[%clk 0:02:57]}  Bb7 {[%clk 0:02:25]} 8. cxd5 {[%clk 0:02:54]}  cxd5 {[%clk 0:02:24]} 9. Bf4 {[%clk 0:02:55]}  a6 {[%clk 0:02:21]} 10. e3 {[%clk 0:02:53]}  Nbc6 {[%clk 0:02:17]} 11. Nge2 {[%clk 0:02:48]}  Nb4 {[%clk 0:02:09]} 12. Nc1 {[%clk 0:02:47]}  Ng6 {[%clk 0:02:01]} 13. Bg3 {[%clk 0:02:47]}  Bd6 {[%clk 0:02:00]} 14. h5 {[%clk 0:02:43]}  Ne7 {[%clk 0:01:53]} 15. Bxd6 {[%clk 0:02:40]}  Qxd6 {[%clk 0:01:53]} 16. a3 {[%clk 0:02:41]}  Nbc6 {[%clk 0:01:52]} 17. Qg4 {[%clk 0:02:38]}  Bc8 {[%clk 0:01:49]} 18. Qd1 {[%clk 0:02:32]}  h6 {[%clk 0:01:39]} 19. g6 {[%clk 0:02:25]}  fxg6 {[%clk 0:01:39]} 20. hxg6 {[%clk 0:02:26]}  Qxg6 {[%clk 0:01:39]} 21. Bf1 {[%clk 0:02:23]}  O-O {[%clk 0:01:35]} 22. N1e2 {[%clk 0:02:17]}  Bg4 {[%clk 0:01:24]} 23. Qb3 {[%clk 0:02:09]}  Na5 {[%clk 0:01:00]} 24. Qa2 {[%clk 0:02:09]}  Bxe2 {[%clk 0:00:36]} 25. Bxe2 {[%clk 0:02:03]}  Qf7 {[%clk 0:00:36]} 26. O-O-O {[%clk 0:02:02]}  Qxf2 {[%clk 0:00:30]} 27. Kb1 {[%clk 0:01:59]}  Qxe3 {[%clk 0:00:28]} 28. Nxd5 {[%clk 0:01:40]}  Nxd5 {[%clk 0:00:27]} 29. Qxd5+ {[%clk 0:01:41]}  Kh8 {[%clk 0:00:25]} 30. Bh5 {[%clk 0:01:36]}  Rad8 {[%clk 0:00:18]} 31. Qe5 {[%clk 0:01:32]}  Nc4 {[%clk 0:00:17]} 32. Qc7 {[%clk 0:01:32]}  b5 {[%clk 0:00:14]} 33. Bg6 {[%clk 0:01:32]}  Qe2 {[%clk 0:00:12]} 34. Rxh6+ {[%clk 0:01:33]}  Kg8 {[%clk 0:00:11]} 35. Bh7+ {[%clk 0:01:29]}  Kh8 {[%clk 0:00:10]} 36. Bxe4+ {[%clk 0:01:29]}  Kg8 {[%clk 0:00:10]} 37. Bh7+ {[%clk 0:01:30]}  Kh8 {[%clk 0:00:10]} 38. Bd3+ {[%clk 0:01:30]}  Kg8 {[%clk 0:00:08]} 39. Bxe2 {[%clk 0:01:30]}  gxh6 {[%clk 0:00:07]} 40. Rg1+ {[%clk 0:01:31]} 1-0


[Site "https://www.chess.com"]

[Event "Titled Tuesday Blitz November 01 Late 2022"]
[White "Bernat, David"]
[Black "Dilanyan, Grigor"]
[WhiteFideId "2099225"]
[BlackFideId "13303570"]
[WhiteElo "2286"]
[BlackElo "2264"]
[Result "0-1"]
[Round "01"]
[TimeControl "180+1"]
[Date "2022.11.02"]
[WhiteClock "0:00:01"]
[BlackClock "0:01:36"]

1. c4 {[%clk 0:02:57]}  c5 {[%clk 0:02:59]} 2. Nc3 {[%clk 0:02:57]}  Nc6 {[%clk 0:02:59]} 3. g3 {[%clk 0:02:57]}  g6 {[%clk 0:03:00]} 4. Bg2 {[%clk 0:02:58]}  Bg7 {[%clk 0:03:00]} 5. e4 {[%clk 0:02:58]}  d6 {[%clk 0:02:57]} 6. Nge2 {[%clk 0:02:58]}  Nf6 {[%clk 0:02:57]} 7. O-O {[%clk 0:02:57]}  O-O {[%clk 0:02:57]} 8. d3 {[%clk 0:02:57]}  Ne8 {[%clk 0:02:58]} 9. Be3 {[%clk 0:02:56]}  Nc7 {[%clk 0:02:58]} 10. d4 {[%clk 0:02:54]}  cxd4 {[%clk 0:02:58]} 11. Nxd4 {[%clk 0:02:55]}  Ne6 {[%clk 0:02:59]} 12. Nde2 {[%clk 0:02:55]}  Bd7 {[%clk 0:02:57]} 13. Qd2 {[%clk 0:02:48]}  Rc8 {[%clk 0:02:57]} 14. Rac1 {[%clk 0:02:41]}  Ne5 {[%clk 0:02:57]} 15. b3 {[%clk 0:02:25]}  Ng4 {[%clk 0:02:55]} 16. Bxa7 {[%clk 0:02:21]}  b6 {[%clk 0:02:55]} 17. Nd5 {[%clk 0:02:21]}  Rc6 {[%clk 0:02:53]} 18. Qb4 {[%clk 0:01:48]}  Nd4 {[%clk 0:02:44]} 19. Rfe1 {[%clk 0:01:20]}  Nxe2+ {[%clk 0:02:42]} 20. Rxe2 {[%clk 0:01:18]}  Bd4 {[%clk 0:02:43]} 21. Qd2 {[%clk 0:00:58]}  e5 {[%clk 0:02:43]} 22. b4 {[%clk 0:00:51]}  Qa8 {[%clk 0:02:33]} 23. b5 {[%clk 0:00:49]}  Qxa7 {[%clk 0:02:20]} 24. bxc6 {[%clk 0:00:49]}  Bxc6 {[%clk 0:02:21]} 25. h3 {[%clk 0:00:45]}  Bxd5 {[%clk 0:02:18]} 26. cxd5 {[%clk 0:00:36]}  Nf6 {[%clk 0:02:18]} 27. Rc6 {[%clk 0:00:32]}  Rd8 {[%clk 0:02:13]} 28. Kh2 {[%clk 0:00:32]}  Kg7 {[%clk 0:02:13]} 29. f4 {[%clk 0:00:32]}  b5 {[%clk 0:02:07]} 30. Qb4 {[%clk 0:00:28]}  Bg1+ {[%clk 0:02:04]} 31. Kh1 {[%clk 0:00:27]}  Nh5 {[%clk 0:02:04]} 32. Qb3 {[%clk 0:00:17]}  exf4 {[%clk 0:02:00]} 33. gxf4 {[%clk 0:00:18]}  Nxf4 {[%clk 0:02:01]} 34. Re1 {[%clk 0:00:19]}  Bd4 {[%clk 0:01:59]} 35. Qf3 {[%clk 0:00:16]}  Be5 {[%clk 0:01:59]} 36. Rec1 {[%clk 0:00:14]}  Rd7 {[%clk 0:01:57]} 37. a3 {[%clk 0:00:11]}  Nh5 {[%clk 0:01:56]} 38. Rc8 {[%clk 0:00:09]}  Ng3+ {[%clk 0:01:56]} 39. Kh2 {[%clk 0:00:09]}  Nxe4+ {[%clk 0:01:54]} 40. Kh1 {[%clk 0:00:08]}  Nf2+ {[%clk 0:01:51]} 41. Kg1 {[%clk 0:00:06]}  Nxh3+ {[%clk 0:01:51]} 42. Kh1 {[%clk 0:00:05]}  Nf2+ {[%clk 0:01:51]} 43. Kg1 {[%clk 0:00:05]}  Ne4+ {[%clk 0:01:40]} 44. Kh1 {[%clk 0:00:05]}  Ng3+ {[%clk 0:01:41]} 45. Kh2 {[%clk 0:00:05]}  Ne2+ {[%clk 0:01:39]} 46. Kh1 {[%clk 0:00:05]}  Nxc1 {[%clk 0:01:40]} 47. Rxc1 {[%clk 0:00:05]}  Qd4 {[%clk 0:01:40]} 48. Rd1 {[%clk 0:00:05]}  Qh4+ {[%clk 0:01:39]} 49. Kg1 {[%clk 0:00:04]}  Bd4+ {[%clk 0:01:37]} 50. Kf1 {[%clk 0:00:03]}  Re7 {[%clk 0:01:37]} 51. Rd2 {[%clk 0:00:01]}  Re1# {[%clk 0:01:36]} 0-1


[Site "https://www.chess.com"]